fUST/lending_fUST_20240504
["ID","MTS","AMOUNT","RATE_DAILY","PERIOD"]
[325365888,1714752666264,-221.560432,0.00026575,2]
[325365889,1714752666274,-500.0,0.00026575,2]
[325365890,1714752666283,-500.0,0.00026575,2]
[325365891,1714752666293,-500.0,0.00026575,2]
[325365892,1714752666302,-2381.42,0.00026575,2]
[325365893,1714752666311,-630.7,0.00026575,2]
[325365894,1714752666321,-500.0,0.00026575,2]
[325365895,1714752666331,-893.73,0.00026575,2]
[325365896,1714752666340,-500.0,0.00026575,2]
[325365897,1714752666350,-3272.0,0.00026575,2]
[325365898,1714752666360,-500.0,0.00026575,2]
[325365899,1714752666369,-345.65852368,0.00026575,2]
[325365900,1714752666379,-3018.34,0.00026575,2]
[325365901,1714752666389,-500.0,0.00026575,2]
[325365902,1714752666399,-521.73,0.00026575,2]
[325365903,1714752666409,-328.75102201,0.00026575,2]
[325365904,1714752666418,-500.0,0.00026575,2]
[325365905,1714752666427,-500.0,0.00026575,2]
[325365906,1714752666436,-500.0,0.00026575,2]
[325365907,1714752666446,-4231.78642,0.00026575,2]
[325365908,1714752666455,-151.0,0.00026575,2]
[325365909,1714752666465,-4231.78642,0.00026575,2]
[325365910,1714752666474,-500.0,0.00026575,2]
[325365911,1714752666484,-399.601546,0.00026575,2]
[325365912,1714752666494,-399.601546,0.00026575,2]
[325365913,1714752666503,-510.42,0.00026575,2]
[325365914,1714752666513,-533.1,0.00026575,2]
[325365915,1714752666523,-558.54,0.00026575,2]
[325365916,1714752666533,-703.36,0.00026575,2]
[325365917,1714752666542,-500.0,0.00026575,2]
[325365918,1714752666551,-500.0,0.00026575,2]
[325365919,1714752666561,-500.0,0.00026575,2]
[325365920,1714752666570,-1095.57,0.00026575,2]
[325365921,1714752666580,-723.47,0.00026575,2]
[325365922,1714752666589,-1145.55,0.00026575,2]
[325365923,1714752666599,-500.0,0.00026575,2]
[325365924,1714752666609,-500.0,0.00026575,2]
[325365925,1714752666618,-500.0,0.00026575,2]
[325365926,1714752666628,-564.06,0.00026575,2]
[325365927,1714752666637,-1500.12,0.00026575,2]
[325365928,1714752666646,-1269.66,0.00026575,2]
[325365929,1714752666655,-803.56,0.00026575,2]
[325365930,1714752666665,-500.0,0.00026575,2]
[325365931,1714752666674,-500.0,0.00026575,2]
[325365932,1714752666684,-500.0,0.00026575,2]
[325365933,1714752666693,-5450.43,0.00026575,2]
[325365934,1714752666784,-9639.94,0.00026575,2]
[325365935,1714752666794,-500.0,0.00026575,2]
[325365936,1714752666804,-500.0,0.00026575,2]
[325365937,1714752666814,-507.84759929,0.00026575,2]
[325365938,1714752666823,-2863.96,0.00026575,2]
[325365939,1714752666833,-5846.76,0.00026575,2]
[325365940,1714752666843,-655.08,0.00026575,2]
[325365941,1714752666852,-500.0,0.00026575,2]
[325365942,1714752666861,-500.0,0.00026575,2]
[325365943,1714752666871,-8763.49,0.00026575,2]
[325365944,1714752666880,-1488.25,0.00026575,2]
[325365945,1714752666889,-504.27451889,0.00026575,2]
[325365946,1714752666898,-649.18,0.00026575,2]
[325365947,1714752666907,-500.0,0.00026575,2]
[325365948,1714752666916,-954.84,0.00026575,2]
[325365949,1714752666926,-919.36,0.00026575,2]
[325365950,1714752666935,-3161.56,0.00026575,2]
[325365951,1714752666944,-500.0,0.00026575,2]
[325365952,1714752666953,-2801.251527,0.00026575,2]
[325365953,1714752666962,-826.39,0.00026575,2]
[325365954,1714752666971,-1417.26,0.00026575,2]
[325365955,1714752666981,-500.0,0.00026575,2]
[325365956,1714752666991,-500.0,0.00026575,2]
[325365957,1714752667004,-500.0,0.00026575,2]
[325365958,1714752667013,-2801.251527,0.00026575,2]
[325365959,1714752667025,-609.36,0.00026575,2]
[325365960,1714752667035,-500.0,0.00026575,2]
[325365961,1714752667045,-500.0,0.00026575,2]
[325365962,1714752667054,-500.0,0.00026575,2]
[325365963,1714752667065,-500.0,0.00026575,2]
[325365964,1714752667076,-500.0,0.00026575,2]
[325365965,1714752667085,-500.0,0.00026575,2]
[325365966,1714752667096,-2231.64,0.00026575,2]
[325365967,1714752667105,-285.453965,0.00026575,2]
[325365968,1714752667114,-285.453965,0.00026575,2]
[325365969,1714752667123,-1036.61,0.00026575,2]
[325365970,1714752667132,-500.0,0.00026575,2]
[325365971,1714752667142,-1809.29,0.00026575,2]
[325365972,1714752667151,-2033.06,0.00026575,2]
[325365973,1714752667160,-661.84,0.00026575,2]
[325365974,1714752667169,-151.0,0.00026575,2]
[325365975,1714752667178,-1304.22,0.00026575,2]
[325365976,1714752667187,-500.0,0.00026575,2]
[325365977,1714752667197,-841.9,0.00026575,2]
[325365978,1714752667206,-4270.44,0.00026575,2]
[325365979,1714752667215,-500.0,0.00026575,2]
[325365980,1714752667224,-500.0,0.00026575,2]
[325365981,1714752667234,-651.21,0.00026575,2]
[325365982,1714752667243,-500.0,0.00026575,2]
[325365983,1714752667253,-539.59,0.00026575,2]
[325365984,1714752667262,-641.97,0.00026575,2]
[325365985,1714752667271,-500.0,0.00026575,2]
[325365986,1714752667283,-5444.24,0.00026575,2]
[325365987,1714752667292,-342.576078,0.00026575,2]
[325365988,1714752667301,-500.0,0.00026575,2]
[325365989,1714752667310,-2248.39,0.00026575,2]
[325365990,1714752667319,-1173.15,0.00026575,2]
[325365991,1714752667330,-41696.51,0.00026575,2]
[325365992,1714752667340,-342.576078,0.00026575,2]
[325365993,1714752667359,-812.09,0.00026575,2]
[325365994,1714752667376,-500.0,0.00026575,2]
[325365995,1714752667393,-500.0,0.00026575,2]
[325365996,1714752667412,-495.98251577,0.00026575,2]
[325365997,1714752667430,-1369.8,0.00026575,2]
[325365998,1714752667448,-1026.08,0.00026575,2]
[325365999,1714752667463,-3496.05,0.00026575,2]
[325366000,1714752667477,-500.0,0.00026575,2]
[325366001,1714752667495,-500.0,0.00026575,2]
[325366002,1714752667515,-5620.69,0.00026575,2]
[325366003,1714752667530,-502.58,0.00026575,2]
[325366004,1714752667544,-560.58,0.00026575,2]
[325366005,1714752667562,-1067.14,0.00026575,2]
[325366006,1714752667576,-500.0,0.00026575,2]
[325366007,1714752667592,-500.0,0.00026575,2]
[325366008,1714752667606,-584.72371405,0.00026575,2]
[325366009,1714752667621,-500.0,0.00026575,2]
[325366010,1714752667636,-500.0,0.00026575,2]
[325366011,1714752667651,-2448.4,0.00026575,2]
[325366012,1714752667666,-783.3,0.00026575,2]
[325366013,1714752667680,-513.96,0.00026575,2]
[325366014,1714752667694,-816.54,0.00026575,2]
[325366015,1714752667709,-1009.08,0.00026575,2]
[325366016,1714752667723,-900.6,0.00026575,2]
[325366017,1714752667737,-500.0,0.00026575,2]
[325366018,1714752667750,-1263.57,0.00026575,2]
[325366019,1714752667765,-744.34,0.00026575,2]
[325366020,1714752667781,-500.0,0.00026575,2]
[325366021,1714752667795,-1057.19,0.00026575,2]
[325366022,1714752667810,-500.0,0.00026575,2]
[325366023,1714752667824,-500.0,0.00026575,2]
[325366024,1714752667839,-11373.14,0.00026575,2]
[325366025,1714752667852,-500.0,0.00026575,2]
[325366026,1714752667867,-352.490302,0.00026575,2]
[325366027,1714752667882,-561.08,0.00026575,2]
[325366028,1714752667896,-1599.42,0.00026575,2]
[325366029,1714752667911,-352.490302,0.00026575,2]
[325366030,1714752667925,-9072.72,0.00026575,2]
[325366031,1714752667939,-514.23,0.00026575,2]
[325366032,1714752667951,-977.23,0.00026575,2]
[325366033,1714752667961,-4570.301963,0.00026575,2]
[325366034,1714752667971,-1156.58,0.00026575,2]
[325366035,1714752667980,-1114.81,0.00026575,2]
[325366036,1714752667994,-500.0,0.00026575,2]
[325366037,1714752668004,-151.0,0.00026575,2]
[325366038,1714752668013,-1214.88,0.00026575,2]
[325366039,1714752668023,-1435.75,0.00026575,2]
[325366040,1714752668034,-4570.301963,0.00026575,2]
[325366041,1714752668043,-1377.22,0.00026575,2]
[325366042,1714752668052,-318.55700752,0.00026576,2]
[325366043,1714752668063,-609.08731,0.000266,2]
[325366044,1714752668074,-609.08731,0.000267,2]
[325366045,1714752668084,-40017.41560515,0.000268,2]
[325366046,1714752668847,-500.0,0.00024657,2]
[325366047,1714752668856,-331.02280636,0.00024763,2]
[325366048,1714752668866,-331.02280636,0.00024831,2]
[325366049,1714752668875,-500.0,0.00024931,2]
[325366050,1714752668884,-500.0,0.00024931,2]
[325366051,1714752668895,-500.0,0.00024931,2]
[325366052,1714752668905,-500.0,0.00025205,2]
[325366053,1714752668915,-570.38,0.00025205,2]
[325366054,1714752668924,-500.0,0.00025205,2]
[325366055,1714752668934,-500.0,0.00025479,2]
[325366056,1714752668948,-506.20789388,0.00025479,2]
[325366057,1714752668960,-500.0,0.00025753,2]
[325366058,1714752668970,-563.45046558,0.00026027,2]
[325366059,1714752668979,-30066.92913732,0.000268,2]
[325366060,1714752669155,-309.41166387,0.00024655,2]
[325366061,1714752669685,500.0,0.00019178,2]
[325366062,1714752669718,500.0,0.00019178,2]
[325366063,1714752669747,500.0,0.00019178,2]
[325366064,1714752669776,500.0,0.00019178,2]
[325366065,1714752669806,500.0,0.00019178,2]
[325366066,1714752669835,500.0,0.00019178,2]
[325366067,1714752669866,500.0,0.00019178,2]
[325366068,1714752669900,500.0,0.00019178,2]
[325366069,1714752669929,500.0,0.00019178,2]
[325366070,1714752669964,500.0,0.00019178,2]
[325366071,1714752669997,178.13164699,0.00019178,2]
[325366072,1714752670032,500.0,0.00019178,2]
[325366073,1714752670072,500.0,0.00019178,2]
[325366074,1714752670198,500.0,0.00019178,2]
[325366075,1714752670231,500.0,0.00019178,2]
[325366076,1714752670261,500.0,0.00019178,2]
[325366077,1714752670291,500.0,0.00019178,2]
[325366078,1714752670321,500.0,0.00019178,2]
[325366079,1714752670359,500.0,0.00019178,2]
[325366080,1714752671616,500.0,0.00019178,2]
[325366081,1714752671650,500.0,0.00019178,2]
[325366082,1714752672213,500.0,0.00019178,2]
[325366083,1714752672274,500.0,0.00019178,2]
[325366084,1714752672324,306.81910011,0.00019178,2]
[325366085,1714752688367,500.0,0.00019178,2]
[325366086,1714752688428,500.0,0.00019178,2]
[325366087,1714752688480,244.21378358,0.00019178,2]
[325366088,1714752688526,259.0,0.00026261,35]
[325366089,1714752689110,259.0,0.00026251,35]
[325366090,1714752689702,259.0,0.00026241,35]
[325366091,1714752719295,150.65349696,0.00024856,30]
[325366092,1714752719363,150.65349696,0.00024358,120]
[325366093,1714752725611,154.65974855,0.000137,2]
[325366094,1714752789404,217.406221,0.00019912,2]
[325366095,1714752805455,160.890301,0.00019638,2]
[325366096,1714752835367,24900.0,0.0001991,2]
[325366097,1714753000554,314.1054928,0.00019887,2]
[325366098,1714753056013,150.65349696,0.00025071,30]
[325366099,1714753056079,150.65349696,0.0002457,120]
[325366100,1714753112383,392.04573003,0.00019178,2]
[325366101,1714753113067,500.0,0.00019178,2]
[325366102,1714753113123,519.79240522,0.00019178,2]
[325366103,1714753274116,217.406221,0.00019859,2]
[325366104,1714753381090,150.65349696,0.00025336,30]
[325366105,1714753381210,150.65349696,0.00024829,120]
[325366106,1714753629117,284.07927972,9.999e-05,2]
[325366122,1714753730801,583.80419576,9.999e-05,2]
[325366123,1714753745369,-154.65974855,0.00020751,2]
[325366124,1714753745389,-2151.49742399,0.00020751,2]
[325366125,1714753745410,-189.49749653,0.00020752,2]
[325366126,1714753745431,-2102.35981509,0.00020752,2]
[325366127,1714753745461,-2200.92174383,0.00020753,2]
[325366128,1714753745486,-1078.72294783,0.00020754,2]
[325366129,1714753745508,-167.94262328,0.00020795,2]
[325366130,1714753745531,-514.23297925,0.00020912,2]
[325366131,1714753745551,-209.0703054,0.00020912,2]
[325366132,1714753745572,-730.61014924,0.00020912,2]
[325366133,1714753745592,-603.75411,0.00020912,2]
[325366134,1714753745612,-212.12287173,0.00020912,2]
[325366135,1714753745634,-648.00564767,0.00020912,2]
[325366136,1714753745654,-173.40883849,0.00020912,4]
[325366137,1714753745675,-213.7765641,0.00020912,2]
[325366138,1714753745697,-155.09772263,0.00020912,2]
[325366139,1714753745717,-156.05275159,0.00020912,2]
[325366140,1714753745738,-217.20715356,0.00020912,2]
[325366141,1714753745758,-206.18739777,0.00020912,2]
[325366142,1714753745778,-266.86053177,0.00020913,2]
[325366143,1714753745799,-166.666666,0.00021918,2]
[325366144,1714753745819,-1007.3794895,0.00021918,2]
[325366145,1714753745844,-159.311331,0.0002243,2]
[325366146,1714753745864,-166.666666,0.00022431,2]
[325366147,1714753745884,-166.666666,0.00022944,2]
[325366148,1714753745904,-265.71985769,0.00023327,2]
[325366149,1714753745923,-620.01119508,0.00023417,2]
[325366150,1714753745948,-166.666666,0.00023456,2]
[325366151,1714753745968,-166.666666,0.00023969,2]
[325366152,1714753745990,-154.86061926,0.00024382,2]
[325366153,1714753746012,-166.666666,0.00024482,2]
[325366154,1714753746034,-1030.12685824,0.00024546,2]
[325366155,1714753746055,-308.84790387,0.00024555,2]
[325366156,1714753746078,-205.08723608,0.00024555,2]
[325366157,1714753746100,-193.80442549,0.00024555,2]
[325366158,1714753746120,-154.86061926,0.00024555,2]
[325366159,1714753746140,-241.61171692,0.00024555,2]
[325366160,1714753746160,-154.92184352,0.00024555,2]
[325366161,1714753746180,-300.92786893,0.00024555,2]
[325366162,1714753746204,-470.18121475,0.00024555,2]
[325366163,1714753746224,-3324.80542024,0.00024555,2]
[325366164,1714753746243,-890.92384481,0.00024555,2]
[325366165,1714753746263,-521.67886641,0.00024555,2]
[325366166,1714753746283,-233.35117561,0.00024555,2]
[325366167,1714753746303,-255.63637849,0.00024555,2]
[325366168,1714753746323,-187.59715936,0.00024555,2]
[325366169,1714753746347,-709.89305319,0.00024555,2]
[325366170,1714753746368,-167.2002434,0.00024555,2]
[325366171,1714753746389,-263.82780671,0.00024555,2]
[325366172,1714753746412,-939.34960788,0.00024555,2]
[325366173,1714753746433,-513.56271106,0.00024556,2]
[325366174,1714753746457,-1396.5546024,0.00024556,2]
[325366175,1714753746477,-154.61898421,0.00024557,2]
[325366176,1714753746497,-620.00055975,0.00024588,2]
[325366177,1714753746519,-154.61898418,0.00024626,2]
[325366178,1714753746539,-557.1,0.00024647,3]
[325366179,1714753746559,-714.56650019,0.00024655,2]
[325366180,1714753746579,-2627.08475998,0.00024655,2]
[325366181,1714753746600,-964.61124368,0.00024655,2]
[325366182,1714753746620,-235.83612481,0.00024655,2]
[325366183,1714753746641,-717.91087502,0.00024655,2]
[325366184,1714753746662,-460.20366438,0.00024655,2]
[325366185,1714753746682,-200.52962551,0.00024655,2]
[325366186,1714753746704,-658.6887612,0.00024655,2]
[325366187,1714753746724,-1492.097253,0.00024655,2]
[325366188,1714753746744,-1378.33540657,0.00024655,2]
[325366189,1714753746765,-283.37019202,0.00024655,2]
[325366190,1714753746786,-206.84821955,0.00024655,2]
[325366191,1714753746806,-20200.60362902,0.00024656,2]
[325366192,1714753746826,-168.01959859,0.00024656,2]
[325366193,1714753746846,-500.0,0.00024657,2]
[325366194,1714753746866,-500.0,0.00024657,2]
[325366195,1714753746885,-500.0,0.00024657,2]
[325366196,1714753746906,-500.0,0.00024657,2]
[325366197,1714753746926,-500.0,0.00024657,2]
[325366198,1714753746946,-213.62699409,0.00024657,2]
[325366199,1714753746966,-500.0,0.00024657,2]
[325366200,1714753746986,-500.0,0.00024657,2]
[325366201,1714753747006,-500.0,0.00024657,2]
[325366202,1714753747026,-500.0,0.00024657,2]
[325366203,1714753747045,-500.0,0.00024657,2]
[325366204,1714753747066,-500.0,0.00024657,2]
[325366205,1714753747216,-500.0,0.00024657,2]
[325366206,1714753747237,-500.0,0.00024657,2]
[325366207,1714753747257,-500.0,0.00024657,2]
[325366208,1714753747276,-500.0,0.00024657,2]
[325366209,1714753747296,-501.61989109,0.00024657,2]
[325366210,1714753747317,-500.0,0.00024657,2]
[325366211,1714753747339,-500.0,0.00024657,2]
[325366212,1714753747359,-500.0,0.00024657,2]
[325366213,1714753747379,-412.54521393,0.00024657,2]
[325366214,1714753747400,-500.0,0.00024657,2]
[325366215,1714753747421,-1000.0,0.00024657,2]
[325366216,1714753747442,-509.97464864,0.00024657,2]
[325366217,1714753747463,-500.0,0.00024657,2]
[325366218,1714753747484,-500.0,0.00024657,2]
[325366219,1714753747506,-500.0,0.00024657,2]
[325366220,1714753747527,-502.73824504,0.00024657,2]
[325366221,1714753747548,-500.0,0.00024657,2]
[325366222,1714753747569,-500.0,0.00024657,2]
[325366223,1714753747589,-500.0,0.00024657,2]
[325366224,1714753747608,-500.0,0.00024657,2]
[325366225,1714753747628,-500.0,0.00024657,2]
[325366226,1714753747647,-500.0,0.00024657,2]
[325366227,1714753747668,-500.0,0.00024657,2]
[325366228,1714753747689,-500.0,0.00024657,2]
[325366229,1714753747707,-500.0,0.00024657,2]
[325366230,1714753747726,-500.0,0.00024657,2]
[325366231,1714753747745,-500.0,0.00024657,2]
[325366232,1714753747765,-500.0,0.00024657,2]
[325366233,1714753747785,-500.0,0.00024657,2]
[325366234,1714753747805,-500.0,0.00024657,2]
[325366235,1714753747825,-500.0,0.00024657,2]
[325366236,1714753747845,-500.0,0.00024657,2]
[325366237,1714753747865,-500.0,0.00024657,2]
[325366238,1714753747885,-500.0,0.00024657,2]
[325366239,1714753747905,-500.0,0.00024657,2]
[325366240,1714753747924,-500.0,0.00024657,2]
[325366241,1714753747944,-500.0,0.00024657,2]
[325366242,1714753747963,-500.0,0.00024657,2]
[325366243,1714753747982,-506.22491566,0.00024657,2]
[325366244,1714753748002,-500.0,0.00024657,2]
[325366245,1714753748021,-500.0,0.00024657,2]
[325366246,1714753748040,-500.0,0.00024657,2]
[325366247,1714753748059,-999.04,0.00024657,2]
[325366248,1714753748080,-500.0,0.00024657,2]
[325366249,1714753748099,-500.0,0.00024657,2]
[325366250,1714753748117,-500.0,0.00024657,2]
[325366251,1714753748137,-500.0,0.00024657,2]
[325366252,1714753748156,-500.0,0.00024657,2]
[325366253,1714753748177,-1805.99,0.00024657,2]
[325366254,1714753748199,-500.0,0.00024657,2]
[325366255,1714753748217,-500.0,0.00024657,2]
[325366256,1714753748236,-502.01368812,0.00024657,2]
[325366257,1714753748256,-500.0,0.00024657,2]
[325366258,1714753748275,-854.64,0.00024657,2]
[325366259,1714753748294,-500.0,0.00024657,2]
[325366260,1714753748314,-500.0,0.00024657,2]
[325366261,1714753748336,-500.0,0.00024657,2]
[325366262,1714753748355,-899.45,0.00024657,2]
[325366263,1714753748375,-500.0,0.00024657,2]
[325366264,1714753748393,-500.0,0.00024657,2]
[325366265,1714753748416,-500.0,0.00024657,2]
[325366266,1714753748439,-500.0,0.00024657,2]
[325366267,1714753748461,-448.75557327,0.00024657,2]
[325366268,1714753748481,-700.55,0.00024657,2]
[325366269,1714753748502,-500.0,0.00024657,2]
[325366270,1714753748521,-1985.95,0.00024657,2]
[325366271,1714753748541,-329.14637404,0.00024657,2]
[325366272,1714753748560,-500.0,0.00024657,2]
[325366273,1714753748580,-500.0,0.00024657,2]
[325366274,1714753748599,-500.0,0.00024657,2]
[325366275,1714753748618,-500.0,0.00024657,2]
[325366276,1714753748637,-419.80897748,0.00024657,2]
[325366277,1714753748656,-897.21,0.00024657,2]
[325366278,1714753748676,-816.2,0.00024657,2]
[325366279,1714753748699,-1282.13,0.00024657,2]
[325366280,1714753748719,-1267.01,0.00024657,2]
[325366281,1714753748738,-500.0,0.00024657,2]
[325366282,1714753748759,-500.0,0.00024657,2]
[325366283,1714753748781,-304.7513673,0.00024657,2]
[325366284,1714753748801,-500.0,0.00024657,2]
[325366285,1714753748820,-500.0,0.00024657,2]
[325366286,1714753748840,-500.0,0.00024657,2]
[325366287,1714753748859,-500.0,0.00024657,2]
[325366288,1714753748877,-500.0,0.00024657,2]
[325366289,1714753748896,-605.90740332,0.00024657,2]
[325366290,1714753748915,-500.0,0.00024657,2]
[325366291,1714753748937,-500.0,0.00024657,2]
[325366292,1714753748957,-846.44,0.00024657,2]
[325366293,1714753748977,-500.0,0.00024657,2]
[325366294,1714753748996,-500.0,0.00024657,2]
[325366295,1714753749015,-502.57560993,0.00024657,2]
[325366296,1714753749034,-500.0,0.00024657,2]
[325366297,1714753749053,-500.0,0.00024657,2]
[325366298,1714753749072,-500.0,0.00024657,2]
[325366299,1714753749091,-500.0,0.00024657,2]
[325366300,1714753749110,-500.0,0.00024657,2]
[325366301,1714753749129,-500.0,0.00024657,2]
[325366302,1714753749149,-500.0,0.00024657,2]
[325366303,1714753749168,-555.09,0.00024657,2]
[325366304,1714753749187,-500.0,0.00024657,2]
[325366305,1714753749207,-776.52,0.00024657,2]
[325366306,1714753749226,-767.29,0.00024657,2]
[325366307,1714753749245,-500.0,0.00024657,2]
[325366308,1714753749264,-500.0,0.00024657,2]
[325366309,1714753749284,-500.0,0.00024657,2]
[325366310,1714753749303,-500.0,0.00024657,2]
[325366311,1714753749328,-500.0,0.00024657,2]
[325366312,1714753749347,-500.0,0.00024657,2]
[325366313,1714753749369,-500.0,0.00024657,2]
[325366314,1714753749389,-500.0,0.00024657,2]
[325366315,1714753749414,-500.0,0.00024657,2]
[325366316,1714753749435,-544.98588063,0.00024657,2]
[325366317,1714753749458,-500.0,0.00024657,2]
[325366318,1714753749477,-500.0,0.00024657,2]
[325366319,1714753749499,-500.0,0.00024657,2]
[325366320,1714753749520,-1658.96,0.00024657,2]
[325366321,1714753749653,-875.72,0.00024657,2]
[325366322,1714753749673,-500.0,0.00024657,2]
[325366323,1714753749695,-500.0,0.00024657,2]
[325366324,1714753749714,-500.0,0.00024657,2]
[325366325,1714753749734,-524.33,0.00024657,2]
[325366326,1714753749754,-500.0,0.00024657,2]
[325366327,1714753749773,-632.61,0.00024657,2]
[325366328,1714753749792,-500.0,0.00024657,2]
[325366329,1714753749812,-1206.19,0.00024657,2]
[325366330,1714753749831,-500.0,0.00024657,2]
[325366331,1714753749850,-594.4842186,0.00024657,2]
[325366332,1714753749869,-500.0,0.00024657,2]
[325366333,1714753749889,-500.0,0.00024657,2]
[325366334,1714753749908,-500.0,0.00024657,2]
[325366335,1714753749928,-500.0,0.00024657,2]
[325366336,1714753749949,-500.0,0.00024657,2]
[325366337,1714753749968,-500.0,0.00024657,2]
[325366338,1714753749987,-500.0,0.00024657,2]
[325366339,1714753750007,-500.0,0.00024657,2]
[325366340,1714753750026,-500.0,0.00024657,2]
[325366341,1714753750045,-500.0,0.00024657,2]
[325366342,1714753750066,-500.0,0.00024657,2]
[325366343,1714753750086,-500.0,0.00024657,2]
[325366344,1714753750107,-593.79,0.00024657,2]
[325366345,1714753750127,-644.85264972,0.00024657,2]
[325366346,1714753750146,-616.52,0.00024657,2]
[325366347,1714753750165,-500.0,0.00024657,2]
[325366348,1714753750185,-500.41417828,0.00024657,2]
[325366349,1714753750205,-500.0,0.00024657,2]
[325366350,1714753750225,-578.39,0.00024657,2]
[325366351,1714753750244,-500.0,0.00024657,2]
[325366352,1714753750264,-500.0,0.00024657,2]
[325366353,1714753750283,-600.24,0.00024657,2]
[325366354,1714753750303,-500.0,0.00024657,2]
[325366355,1714753750324,-500.0,0.00024657,2]
[325366356,1714753750345,-500.0,0.00024657,2]
[325366357,1714753750365,-500.0,0.00024657,2]
[325366358,1714753750384,-1146.72,0.00024657,2]
[325366359,1714753750405,-500.0,0.00024657,2]
[325366360,1714753750426,-500.0,0.00024657,2]
[325366361,1714753750448,-500.0,0.00024657,2]
[325366362,1714753750469,-500.0,0.00024657,2]
[325366363,1714753750490,-546.7006748,0.00024657,2]
[325366364,1714753750511,-1028.82,0.00024657,2]
[325366365,1714753750532,-500.0,0.00024657,2]
[325366366,1714753750553,-500.0,0.00024657,2]
[325366367,1714753750572,-1150.14,0.00024657,2]
[325366368,1714753750592,-500.0,0.00024657,2]
[325366369,1714753750611,-603.44,0.00024657,2]
[325366370,1714753750631,-500.0,0.00024657,2]
[325366371,1714753750650,-500.0,0.00024657,2]
[325366372,1714753750670,-1750.46,0.00024657,2]
[325366373,1714753750691,-500.0,0.00024657,2]
[325366374,1714753750711,-500.0,0.00024657,2]
[325366375,1714753750730,-500.0,0.00024657,2]
[325366376,1714753750749,-500.0,0.00024657,2]
[325366377,1714753750769,-500.0,0.00024657,2]
[325366378,1714753750789,-500.0,0.00024657,2]
[325366379,1714753750810,-500.0,0.00024657,2]
[325366380,1714753750831,-500.0,0.00024657,2]
[325366381,1714753750851,-500.0,0.00024657,2]
[325366382,1714753750872,-343.15891656,0.00024657,2]
[325366383,1714753750890,-500.0,0.00024657,2]
[325366384,1714753750912,-500.0,0.00024657,2]
[325366385,1714753750944,-500.0,0.00024657,2]
[325366386,1714753750974,-707.03,0.00024657,2]
[325366387,1714753750994,-500.0,0.00024657,2]
[325366388,1714753751013,-500.0,0.00024657,2]
[325366389,1714753751033,-500.0,0.00024657,2]
[325366390,1714753751052,-802.34,0.00024657,2]
[325366391,1714753751072,-1191.56,0.00024657,2]
[325366392,1714753751092,-500.0,0.00024657,2]
[325366393,1714753751112,-503.24202921,0.00024657,2]
[325366394,1714753751132,-984.41,0.00024657,2]
[325366395,1714753751152,-500.0,0.00024657,2]
[325366396,1714753751171,-500.0,0.00024657,2]
[325366397,1714753751190,-1242.79,0.00024657,2]
[325366398,1714753751210,-185.09663574,0.00024657,2]
[325366399,1714753751230,-500.0,0.00024657,2]
[325366400,1714753751249,-500.0,0.00024657,2]
[325366401,1714753751269,-503.11,0.00024657,2]
[325366402,1714753751290,-1910.18,0.00024657,2]